lending/lending_fUSD_20240806
["ID","MTS","AMOUNT","RATE_DAILY","PERIOD"]
[334303725,1722930641089,-264.36092051,0.00011105,2]
[334303726,1722930641099,-2340.81787012,0.00011105,2]
[334303727,1722930641444,-1297.62235699,0.00011105,2]
[334303728,1722930641488,-1138.52210003,0.00011105,2]
[334303729,1722930641498,-1176.3199048,0.00011105,2]
[334303730,1722930641507,-298.50152661,0.00011105,2]
[334303731,1722930641517,-1184.40654444,0.00011105,2]
[334303732,1722930641526,-1074.12957374,0.00011105,2]
[334303733,1722930641535,-686.66832223,0.00011105,2]
[334303734,1722930641544,-313.56779303,0.00011105,2]
[334303735,1722930641553,-155.0,0.00011105,2]
[334303736,1722930641563,-236.22265228,0.00011105,2]
[334303737,1722930641572,-158.92312408,0.00011105,2]
[334303738,1722930641581,-347.5045085,0.00011105,2]
[334303739,1722930641590,-921.08584336,0.00011105,2]
[334303740,1722930641600,-155.0,0.00011105,2]
[334303741,1722930641610,-204.59634864,0.00011105,2]
[334303742,1722930641619,-155.67714629,0.00011105,2]
[334303743,1722930641628,-255.06784743,0.00011105,2]
[334303744,1722930641638,-439.86607243,0.00011105,2]
[334303745,1722930641647,-270.43561965,0.00011105,2]
[334303746,1722930641656,-155.0,0.00011105,2]
[334303747,1722930641665,-297.33720666,0.00011105,2]
[334303748,1722930641675,-155.0,0.00011105,2]
[334303749,1722930641685,-1500.0,0.00011105,2]
[334303750,1722930641695,-365.55814847,0.00011105,2]
[334303751,1722930641705,-962.05777987,0.00011105,2]
[334303752,1722930641714,-594.76876135,0.00011105,2]
[334303753,1722930641725,-165.42755717,0.00011105,2]
[334303754,1722930641735,-203.31285959,0.00011105,2]
[334303755,1722930641744,-723.05727297,0.00011105,2]
[334303756,1722930641754,-155.0,0.00011105,2]
[334303757,1722930641763,-155.36263632,0.00011105,2]
[334303758,1722930641773,-380.14796081,0.00011105,2]
[334303759,1722930641782,-159.52802673,0.00011105,2]
[334303760,1722930641797,-330.04532023,0.00011105,2]
[334303761,1722930641806,-155.0,0.00011105,2]
[334303762,1722930641815,-600.45534575,0.00011105,2]
[334303763,1722930641824,-210.90312245,0.00011105,2]
[334303764,1722930641835,-363.99654651,0.00011105,2]
[334303765,1722930641845,-155.0,0.00011105,2]
[334303766,1722930641854,-164.30370946,0.00011105,2]
[334303767,1722930641865,-155.0,0.00011105,2]
[334303768,1722930641875,-164.3205544,0.00011105,2]
[334303769,1722930641884,-155.0,0.00011105,2]
[334303770,1722930641893,-328.08103898,0.00011105,2]
[334303771,1722930641903,-205.84081524,0.00011105,2]
[334303772,1722930641913,-155.0,0.00011105,2]
[334303773,1722930641922,-418.97004719,0.00011105,2]
[334303774,1722930641934,-454.36595222,0.00011105,2]
[334303775,1722930641943,-155.0,0.00011105,2]
[334303776,1722930641953,-155.0,0.00011105,2]
[334303777,1722930641963,-519.87373772,0.00011105,2]
[334303778,1722930641974,-155.0,0.00011105,2]
[334303779,1722930641984,-155.0,0.00011105,2]
[334303780,1722930641994,-155.0,0.00011105,2]
[334303781,1722930642003,-265.31216266,0.00011105,2]
[334303782,1722930642013,-155.0,0.00011105,2]
[334303783,1722930642023,-476.70905389,0.00011105,2]
[334303784,1722930642034,-206.66942035,0.00011105,2]
[334303785,1722930642044,-155.0,0.00011105,2]
[334303786,1722930642053,-359.22293146,0.00011105,2]
[334303787,1722930642063,-155.0,0.00011105,2]
[334303788,1722930642072,-227.01654537,0.00011105,2]
[334303789,1722930642081,-155.0,0.00011105,2]
[334303790,1722930642090,-243.133158,0.00011105,2]
[334303791,1722930642100,-218.80676447,0.00011105,2]
[334303792,1722930642109,-532.00654978,0.00011105,2]
[334303793,1722930642118,-200.0,0.00011105,2]
[334303794,1722930642130,-155.0,0.00011105,2]
[334303795,1722930642139,-155.0,0.00011105,2]
[334303796,1722930642149,-484.95345974,0.00011105,2]
[334303797,1722930642158,-155.0,0.00011105,2]
[334303798,1722930642168,-367.68673984,0.00011105,2]
[334303799,1722930642177,-151.0,0.00011105,2]
[334303800,1722930642187,-714.711384,0.00011105,2]
[334303801,1722930642197,-151.0,0.00011105,2]
[334303802,1722930642207,-151.0,0.00011105,2]
[334303803,1722930642217,-714.711384,0.00011105,2]
[334303804,1722930642227,-570.040086,0.00011105,2]
[334303805,1722930642237,-570.040086,0.00011105,2]
[334303806,1722930642246,-151.0,0.00011105,2]
[334303807,1722930642257,-151.0,0.00011105,2]
[334303808,1722930642269,-151.0,0.00011105,2]
[334303809,1722930642279,-151.0,0.00011105,2]
[334303810,1722930642289,-151.0,0.00011105,2]
[334303811,1722930642299,-151.0,0.00011105,2]
[334303813,1722930642309,-151.0,0.00011105,2]
[334303815,1722930642319,-151.0,0.00011105,2]
[334303817,1722930642329,-151.0,0.00011105,2]
[334303819,1722930642340,-151.0,0.00011105,2]
[334303820,1722930642349,-277.535597,0.00011105,2]
[334303822,1722930642359,-277.535597,0.00011105,2]
[334303824,1722930642369,-151.0,0.00011105,2]
[334303826,1722930642379,-151.0,0.00011105,2]
[334303828,1722930642388,-151.0,0.00011105,2]
[334303829,1722930642398,-151.0,0.00011105,2]
[334303830,1722930642407,-151.0,0.00011105,2]
[334303831,1722930642416,-151.0,0.00011105,2]
[334303832,1722930642426,-422.763504,0.00011105,2]
[334303833,1722930642436,-422.763504,0.00011105,2]
[334303834,1722930642445,-151.0,0.00011105,2]
[334303835,1722930642455,-151.0,0.00011105,2]
[334303836,1722930642467,-151.0,0.00011105,2]
[334303837,1722930642478,-151.0,0.00011105,2]
[334303838,1722930642487,-710.95336718,0.00011105,2]
[334303839,1722930642497,-235.976145,0.00011105,2]
[334303840,1722930642507,-235.976145,0.00011105,2]
[334303841,1722930642516,-151.0,0.00011105,2]
[334303842,1722930642527,-151.0,0.00011105,2]
[334303843,1722930642536,-151.0,0.00011105,2]
[334303844,1722930642546,-151.0,0.00011105,2]
[334303845,1722930642555,-151.0,0.00011105,2]
[334303846,1722930642565,-151.0,0.00011105,2]
[334303847,1722930642574,-151.0,0.00011105,2]
[334303848,1722930642584,-164.899216,0.00011105,2]
[334303849,1722930642594,-164.899216,0.00011105,2]
[334303850,1722930642618,-151.0,0.00011105,2]
[334303852,1722930642627,-151.0,0.00011105,2]
[334303855,1722930642637,-151.0,0.00011105,2]
[334303857,1722930642646,-151.0,0.00011105,2]
[334303859,1722930642657,-151.0,0.00011105,2]
[334303860,1722930642667,-151.0,0.00011105,2]
[334303861,1722930642676,-151.0,0.00011105,2]
[334303862,1722930642685,-151.0,0.00011105,2]
[334303863,1722930642695,-784.227122,0.00011105,2]
[334303864,1722930642704,-151.0,0.00011105,2]
[334303865,1722930642713,-784.227122,0.00011105,2]
[334303866,1722930642723,-768.667226,0.00011105,2]
[334303867,1722930642733,-768.667226,0.00011105,2]
[334303868,1722930642742,-1282.80271,0.00011105,2]
[334303869,1722930642753,-151.0,0.00011105,2]
[334303870,1722930642762,-1282.80271,0.00011105,2]
[334303871,1722930642772,-151.0,0.00011105,2]
[334303872,1722930642784,-480.698783,0.00011105,2]
[334303873,1722930642795,-480.698783,0.00011105,2]
[334303874,1722930642804,-151.0,0.00011105,2]
[334303875,1722930642813,-151.0,0.00011105,2]
[334303876,1722930642823,-258.33815,0.00011105,2]
[334303877,1722930642832,-258.33815,0.00011105,2]
[334303878,1722930642842,-151.0,0.00011105,2]
[334303879,1722930642852,-151.0,0.00011105,2]
[334303880,1722930642861,-151.0,0.00011105,2]
[334303881,1722930642873,-151.0,0.00011105,2]
[334303882,1722930642883,-151.0,0.00011105,2]
[334303883,1722930642893,-151.0,0.00011105,2]
[334303884,1722930642902,-500.326658,0.00011105,2]
[334303885,1722930642912,-500.326658,0.00011105,2]
[334303886,1722930642921,-196.156854,0.00011105,2]
[334303887,1722930642932,-196.156854,0.00011105,2]
[334303888,1722930642941,-151.0,0.00011105,2]
[334303889,1722930642950,-151.0,0.00011105,2]
[334303890,1722930642960,-178.043137,0.00011105,2]
[334303891,1722930642970,-178.043137,0.00011105,2]
[334303892,1722930642980,-151.0,0.00011105,2]
[334303894,1722930642989,-4168.97433,0.00011105,2]
[334303896,1722930642998,-4168.97433,0.00011105,2]
[334303898,1722930643007,-151.0,0.00011105,2]
[334303900,1722930643016,-151.0,0.00011105,2]
[334303902,1722930643026,-151.0,0.00011105,2]
[334303903,1722930643036,-166.885364,0.00011105,2]
[334303904,1722930643046,-166.885364,0.00011105,2]
[334303905,1722930643055,-151.0,0.00011105,2]
[334303906,1722930643064,-228.425757,0.00011105,2]
[334303907,1722930643073,-1407.728659,0.00011105,2]
[334303908,1722930643082,-151.0,0.00011105,2]
[334303909,1722930643092,-1407.728659,0.00011105,2]
[334303910,1722930643101,-151.0,0.00011105,2]
[334303911,1722930643110,-199.238466,0.00011105,2]
[334303912,1722930643120,-199.238466,0.00011105,2]
[334303914,1722930643129,-170.57502,0.00011105,2]
[334303916,1722930643138,-170.57502,0.00011105,2]
[334303917,1722930643147,-151.0,0.00011105,2]
[334303918,1722930643157,-473.091945,0.00011105,2]
[334303919,1722930643166,-473.091945,0.00011105,2]
[334303920,1722930643175,-151.0,0.00011105,2]
[334303921,1722930643185,-947.92262883,0.00011105,2]
[334303922,1722930643194,-295.430368,0.00011105,2]
[334303923,1722930643205,-295.430368,0.00011105,2]
[334303924,1722930643215,-151.0,0.00011105,2]
[334303925,1722930643224,-151.0,0.00011105,2]
[334303926,1722930643234,-271.444059,0.00011105,2]
[334303927,1722930643245,-271.444059,0.00011105,2]
[334303928,1722930643254,-19700.37891776,0.00011105,2]
[334303929,1722930643264,-383.658714,0.00011105,2]
[334303930,1722930643273,-151.0,0.00011105,2]
[334303931,1722930643283,-208.00252,0.00011105,2]
[334303932,1722930643294,-208.00252,0.00011105,2]
[334303933,1722930643304,-151.0,0.00011105,2]
[334303934,1722930643314,-274.160286,0.00011105,2]
[334303935,1722930643324,-1232.229498,0.00011105,2]
[334303936,1722930643333,-383.658714,0.00011105,2]
[334303937,1722930643343,-1232.229498,0.00011105,2]
[334303938,1722930643353,-155.0,0.00011105,2]
[334303939,1722930643363,-151.44121,0.00011105,2]
[334303940,1722930643372,-151.0,0.00011105,2]
[334303941,1722930643382,-2000.0,0.0001111,2]
[334303942,1722930643392,-200.0,0.0001111,2]
[334303943,1722930643401,-2000.0,0.0001111,2]
[334303944,1722930643411,-200.0,0.0001111,2]
[334303945,1722930643420,-2000.0,0.00011221,2]
[334303946,1722930643431,-200.0,0.00011221,2]
[334303947,1722930643441,-2000.0,0.00011221,2]
[334303948,1722930643451,-200.0,0.00011221,2]
[334303949,1722930643461,-2000.0,0.00011333,2]
[334303950,1722930643470,-200.0,0.00011333,2]
[334303951,1722930643479,-2000.0,0.00011333,2]
[334303952,1722930643488,-200.0,0.00011333,2]
[334303953,1722930643498,-150.0,0.00011352,2]
[334303954,1722930643507,-150.123,0.00011352,2]
[334303955,1722930643517,-150.0,0.00011352,2]
[334303956,1722930643527,-150.11,0.00011352,2]
[334303957,1722930643536,-622.0,0.00011352,2]
[334303958,1722930643546,-1256.0,0.00011352,2]
[334303959,1722930643555,-1925.0,0.00011352,2]
[334303960,1722930643564,-1583.0,0.00011352,2]
[334303961,1722930643574,-810.0,0.00011352,2]
[334303962,1722930643583,-1552.0,0.00011352,2]
[334303963,1722930643593,-451.0,0.00011352,2]
[334303964,1722930643602,-446.0,0.00011352,2]
[334303965,1722930643611,-1893.0,0.00011352,2]
[334303966,1722930643620,-551.0,0.00011352,2]
[334303967,1722930643629,-150.302,0.00011352,2]
[334303968,1722930643638,-3289.0,0.00011352,2]
[334303969,1722930643648,-150.0,0.00011352,2]
[334303970,1722930643657,-1158.0,0.00011352,2]
[334303971,1722930643666,-2030.895,0.00011352,2]
[334303972,1722930643676,-1819.824,0.00011352,2]
[334303973,1722930643686,-5837.0,0.00011352,2]
[334303974,1722930643695,-21740.0,0.00011352,2]
[334303975,1722930643704,-289.0,0.00011352,2]
[334303976,1722930643714,-229.074,0.00011352,2]
[334303977,1722930643724,-150.0,0.00011352,2]
[334303978,1722930643735,-388.03778467,0.00011393,2]
[334303979,1722930643747,-2000.0,0.00011447,2]
[334303980,1722930643759,-200.0,0.00011447,2]
[334303981,1722930643769,-2000.0,0.00011447,2]
[334303982,1722930643778,-200.0,0.00011447,2]
[334303983,1722930643790,-326.39,0.0001147,2]
[334303984,1722930643801,-164.581741,0.00011513,2]
[334303985,1722930643810,-420.0,0.00011542,2]
[334303986,1722930643820,-375.0,0.0001157,2]
[334303987,1722930643831,-336.0,0.000116,2]
[334303988,1722930643841,-721.0,0.000116,2]
[334303989,1722930643850,-276.37,0.0001171,2]
[334303990,1722930643860,-399.97,0.00011798,2]
[334303991,1722930643870,-164.581741,0.00011801,2]
[334303992,1722930643879,-255.0,0.00011801,2]
[334303993,1722930643889,-40841.82986248,0.00011868,2]
[334303994,1722930643898,-2084.64399347,0.00012,2]
[334303995,1722930644018,-155.10767149,0.00012,2]
[334303996,1722930644027,-5000.0,0.00012,2]
[334303997,1722930644037,-2000.0,0.00012,2]
[334303998,1722930644046,-500.326658,0.00012,2]
[334303999,1722930644055,-500.326658,0.00012,2]
[334304000,1722930644064,-151.0,0.00012,2]
[334304001,1722930644073,-151.0,0.00012,2]
[334304002,1722930644082,-4168.97433,0.00012,2]
[334304003,1722930644091,-4168.97433,0.00012,2]
[334304004,1722930644100,-151.0,0.00012,2]
[334304005,1722930644109,-151.0,0.00012,2]
[334304006,1722930644119,-151.0,0.00012,2]
[334304007,1722930644128,-166.885364,0.00012,2]
[334304008,1722930644138,-166.885364,0.00012,2]
[334304009,1722930644147,-151.0,0.00012,2]
[334304010,1722930644157,-1407.728659,0.00012,2]
[334304011,1722930644167,-151.0,0.00012,2]
[334304012,1722930644175,-1407.728659,0.00012,2]
[334304013,1722930644184,-151.0,0.00012,2]
[334304014,1722930644194,-199.238466,0.00012,2]
[334304015,1722930644203,-199.238466,0.00012,2]
[334304016,1722930644212,-170.57502,0.00012,2]
[334304017,1722930644222,-170.57502,0.00012,2]
[334304018,1722930644232,-151.0,0.00012,2]
[334304019,1722930644241,-473.091945,0.00012,2]
[334304020,1722930644251,-473.091945,0.00012,2]
[334304021,1722930644260,-151.0,0.00012,2]
[334304022,1722930644268,-295.430368,0.00012,2]
[334304023,1722930644277,-295.430368,0.00012,2]
[334304024,1722930644286,-151.0,0.00012,2]
[334304025,1722930644295,-271.444059,0.00012,2]
[334304026,1722930644305,-271.444059,0.00012,2]
[334304027,1722930644313,-383.658714,0.00012,2]
[334304028,1722930644322,-208.00252,0.00012,2]
[334304029,1722930644332,-208.00252,0.00012,2]
[334304030,1722930644341,-151.0,0.00012,2]
[334304031,1722930644350,-151.0,0.00012,2]
[334304032,1722930644359,-1232.229498,0.00012,2]
[334304033,1722930644369,-383.658714,0.00012,2]
[334304034,1722930644378,-1232.229498,0.00012,2]
[334304035,1722930644387,-150.0,0.00012,2]
[334304036,1722930644397,-793.74,0.00012,2]
[334304037,1722930644407,-793.74,0.00012,2]
[334304038,1722930644416,-793.74,0.00012,2]
[334304039,1722930644426,-793.74,0.00012,2]
[334304040,1722930644436,-793.74,0.00012,2]
[334304041,1722930644445,-793.74,0.00012,2]
[334304042,1722930644455,-793.74,0.00012,2]
[334304043,1722930644464,-793.74,0.00012,2]
[334304044,1722930644474,-793.74,0.00012,2]
[334304045,1722930644486,-793.74,0.00012,2]
[334304046,1722930644495,-151.0,0.00012,2]
[334304047,1722930644504,-176.65,0.00012033,2]
[334304048,1722930644514,-164.581741,0.00012088,2]
[334304049,1722930644524,-3000.0,0.0001209,2]
[334304050,1722930644533,-1261.67644928,0.00012186,2]
[334304051,1722930644542,-173.05,0.00012245,2]
[334304052,1722930644551,-600.03,0.0001229,2]
[334304053,1722930644560,-150.0,0.00012349,5]
[334304054,1722930644570,-375.0,0.0001243,2]
[334304055,1722930644580,-176.65,0.00012458,2]
[334304056,1722930644590,-697111.62649486,0.0001246,2]
[334304057,1722930644602,-151.0,0.0001246,2]
[334304058,1722930644611,-151.0,0.0001246,2]
[334304059,1722930644621,-151.0,0.0001246,2]
[334304060,1722930644631,-151.0,0.0001246,2]
[334304061,1722930644641,-151.0,0.0001246,2]
[334304062,1722930644650,-160.806628,0.0001246,2]
[334304063,1722930644660,-160.806628,0.0001246,2]
[334304064,1722930644670,-151.0,0.0001246,2]
[334304065,1722930644679,-194.172678,0.0001246,2]
[334304066,1722930644688,-194.172678,0.0001246,2]
[334304067,1722930644699,-151.0,0.0001246,2]
[334304068,1722930644709,-151.0,0.0001246,2]
[334304069,1722930644718,-151.0,0.0001246,2]
[334304070,1722930644729,-206.667279,0.0001246,2]
[334304071,1722930644738,-151.0,0.0001246,2]
[334304072,1722930644747,-151.0,0.0001246,2]
[334304073,1722930644757,-151.0,0.0001246,2]
[334304074,1722930644766,-151.0,0.0001246,2]
[334304075,1722930644775,-151.0,0.0001246,2]
[334304076,1722930644788,-152.414708,0.0001246,2]
[334304077,1722930644798,-151.0,0.0001246,2]
[334304078,1722930644808,-187.637964,0.0001246,2]
[334304079,1722930644818,-187.637964,0.0001246,2]
[334304080,1722930644827,-151.0,0.0001246,2]
[334304081,1722930644839,-151.0,0.0001246,2]
[334304082,1722930644848,-186.082846,0.0001246,2]
[334304083,1722930644858,-151.0,0.0001246,2]
[334304084,1722930644868,-151.0,0.0001246,2]
[334304085,1722930644878,-186.082846,0.0001246,2]
[334304086,1722930644887,-421.538952,0.0001246,2]
[334304087,1722930644896,-724.109508,0.0001246,2]
[334304088,1722930644905,-724.109508,0.0001246,2]
[334304089,1722930644915,-421.538952,0.0001246,2]
[334304090,1722930644926,-151.0,0.0001246,2]
[334304091,1722930644935,-151.0,0.0001246,2]
[334304092,1722930644944,-159.8408,0.0001246,2]
[334304093,1722930644953,-202.88442,0.0001246,2]
[334304094,1722930644962,-202.88442,0.0001246,2]
[334304095,1722930644972,-151.0,0.0001246,2]
[334304096,1722930644981,-714.711384,0.0001246,2]
[334304097,1722930644990,-151.0,0.0001246,2]
[334304098,1722930644999,-151.0,0.0001246,2]
[334304099,1722930645008,-714.711384,0.0001246,2]
[334304100,1722930645017,-570.040086,0.0001246,2]
[334304101,1722930645026,-570.040086,0.0001246,2]
[334304102,1722930645035,-151.0,0.0001246,2]
[334304103,1722930645044,-151.0,0.0001246,2]
[334304104,1722930645054,-151.0,0.0001246,2]
[334304105,1722930645063,-151.0,0.0001246,2]
[334304106,1722930645072,-151.0,0.0001246,2]
[334304107,1722930645081,-151.321915,0.0001246,2]
[334304108,1722930645090,-151.0,0.0001246,2]
[334304109,1722930645099,-151.0,0.0001246,2]
[334304110,1722930645109,-151.0,0.0001246,2]
[334304111,1722930645118,-277.535597,0.0001246,2]
[334304112,1722930645127,-277.535597,0.0001246,2]
[334304113,1722930645137,-151.0,0.0001246,2]
[334304114,1722930645146,-151.0,0.0001246,2]
[334304115,1722930645155,-151.0,0.0001246,2]
[334304116,1722930645164,-253.072338,0.0001246,2]
[334304117,1722930645174,-422.763504,0.0001246,2]
[334304118,1722930645183,-422.763504,0.0001246,2]
[334304119,1722930645192,-291.688921,0.0001246,2]
[334304120,1722930645201,-151.0,0.0001246,2]
[334304121,1722930645210,-151.0,0.0001246,2]
[334304122,1722930645220,-151.0,0.0001246,2]
[334304123,1722930645230,-235.976145,0.0001246,2]
[334304124,1722930645239,-235.976145,0.0001246,2]
[334304125,1722930645248,-151.0,0.0001246,2]
[334304126,1722930645258,-151.0,0.0001246,2]
[334304127,1722930645267,-151.0,0.0001246,2]
[334304128,1722930645276,-151.0,0.0001246,2]
[334304129,1722930645285,-151.0,0.0001246,2]
[334304130,1722930645294,-151.0,0.0001246,2]
[334304131,1722930645303,-151.0,0.0001246,2]
[334304132,1722930645312,-164.899216,0.0001246,2]
[334304133,1722930645322,-164.899216,0.0001246,2]
[334304134,1722930645332,-151.0,0.0001246,2]
[334304135,1722930645343,-151.284294,0.0001246,2]
[334304136,1722930645353,-151.0,0.0001246,2]
[334304137,1722930645362,-151.0,0.0001246,2]
[334304138,1722930645373,-151.0,0.0001246,2]
[334304139,1722930645382,-151.0,0.0001246,2]
[334304141,1722930645392,-151.0,0.0001246,2]
[334304142,1722930645401,-784.227122,0.0001246,2]
[334304143,1722930645410,-151.0,0.0001246,2]
[334304144,1722930645421,-784.227122,0.0001246,2]
[334304145,1722930645430,-768.667226,0.0001246,2]
[334304146,1722930645439,-768.667226,0.0001246,2]
[334304147,1722930645448,-1282.80271,0.0001246,2]
[334304148,1722930645458,-151.0,0.0001246,2]
[334304149,1722930645467,-1282.80271,0.0001246,2]
[334304150,1722930645476,-151.0,0.0001246,2]
[334304151,1722930645485,-480.698783,0.0001246,2]
[334304152,1722930645494,-480.698783,0.0001246,2]
[334304153,1722930645503,-151.0,0.0001246,2]
[334304154,1722930645514,-151.0,0.0001246,2]
[334304155,1722930645524,-258.33815,0.0001246,2]
[334304156,1722930645533,-258.33815,0.0001246,2]
[334304157,1722930645543,-151.0,0.0001246,2]
[334304158,1722930645554,-151.0,0.0001246,2]
[334304159,1722930645564,-151.0,0.0001246,2]
[334304160,1722930645575,-151.0,0.0001246,2]
[334304161,1722930645587,-151.0,0.0001246,2]
[334304162,1722930645596,-500.326658,0.0001246,2]
[334304163,1722930645606,-500.326658,0.0001246,2]
[334304164,1722930645615,-196.156854,0.0001246,2]
[334304165,1722930645624,-196.156854,0.0001246,2]
[334304166,1722930645633,-151.0,0.0001246,2]
[334304167,1722930645643,-151.0,0.0001246,2]
[334304168,1722930645652,-178.043137,0.0001246,2]
[334304169,1722930645662,-178.043137,0.0001246,2]
[334304170,1722930645671,-151.0,0.0001246,2]
[334304171,1722930645680,-4168.97433,0.0001246,2]
[334304172,1722930645690,-4168.97433,0.0001246,2]
[334304173,1722930645699,-168.980269,0.0001246,2]
[334304174,1722930645708,-151.0,0.0001246,2]
[334304175,1722930645718,-151.0,0.0001246,2]
[334304176,1722930645727,-166.885364,0.0001246,2]
[334304177,1722930645736,-166.885364,0.0001246,2]
[334304178,1722930645746,-151.0,0.0001246,2]
[334304179,1722930645755,-1407.728659,0.0001246,2]
[334304180,1722930645764,-151.0,0.0001246,2]
[334304181,1722930645773,-1407.728659,0.0001246,2]
[334304182,1722930645783,-151.0,0.0001246,2]
[334304183,1722930645796,-199.238466,0.0001246,2]
[334304184,1722930645806,-199.238466,0.0001246,2]
[334304185,1722930645816,-170.57502,0.0001246,2]
[334304186,1722930645826,-170.57502,0.0001246,2]
[334304187,1722930645837,-151.0,0.0001246,2]
[334304188,1722930645846,-473.091945,0.0001246,2]
[334304189,1722930645856,-473.091945,0.0001246,2]
[334304190,1722930645865,-151.0,0.0001246,2]
[334304191,1722930645876,-295.430368,0.0001246,2]
[334304192,1722930645886,-295.430368,0.0001246,2]
[334304193,1722930645895,-151.0,0.0001246,2]
[334304194,1722930645905,-271.444059,0.0001246,2]
[334304195,1722930645914,-271.444059,0.0001246,2]
[334304196,1722930645924,-383.658714,0.0001246,2]
[334304197,1722930645933,-208.00252,0.0001246,2]
[334304198,1722930645942,-208.00252,0.0001246,2]
[334304199,1722930645952,-151.0,0.0001246,2]
[334304200,1722930645961,-151.0,0.0001246,2]
[334304201,1722930645971,-1232.229498,0.0001246,2]
[334304202,1722930645980,-383.658714,0.0001246,2]
[334304203,1722930645991,-1232.229498,0.0001246,2]
[334304204,1722930646000,-155.70119273,0.00012473,2]
[334304205,1722930646010,-200.0,0.00012473,2]
[334304206,1722930646019,-200.0,0.00012473,2]
[334304207,1722930646027,-200.0,0.00012473,2]
[334304208,1722930646037,-200.0,0.00012473,2]
[334304209,1722930646046,-233.59554998,0.00012535,5]
[334304210,1722930646055,-199.8,0.00012576,2]
[334304211,1722930646065,-587.0,0.0001269,2]
[334304212,1722930646075,-939.72,0.00012717,2]
[334304213,1722930646085,-326.39,0.00012744,2]
[334304214,1722930646094,-588.5792344,0.00012749,2]
[334304215,1722930646104,-500.0,0.000128,2]
[334304216,1722930646114,-500.0,0.000128,2]
[334304217,1722930646123,-283.63,0.000128,2]
[334304218,1722930646133,-500.0,0.000128,2]
[334304219,1722930646142,-346.91,0.000128,2]
[334304220,1722930646152,-500.0,0.000128,2]
[334304221,1722930646161,-500.0,0.000128,2]
[334304222,1722930646170,-500.0,0.000128,2]
[334304223,1722930646180,-500.0,0.000128,2]
[334304224,1722930646189,-500.0,0.000128,2]
[334304225,1722930646198,-500.0,0.000128,2]
[334304226,1722930646208,-500.0,0.000128,2]
[334304227,1722930646217,-500.0,0.000128,2]
[334304228,1722930646226,-500.0,0.000128,2]
[334304229,1722930646235,-500.0,0.000128,2]
[334304230,1722930646245,-411.69,0.000128,2]
[334304231,1722930646254,-40841.82986248,0.00012872,2]
[334304232,1722930646264,-176.65,0.00012884,2]
[334304233,1722930646273,-179.99,0.00012893,2]
[334304234,1722930646283,-1330.68794159,0.0001297,2]
[334304235,1722930646294,-155.0,0.00012995,2]
[334304236,1722930646303,-155.0,0.00013,2]
[334304237,1722930646313,-2000.0,0.00013,2]
[334304238,1722930646322,-600.0,0.00013,2]
[334304239,1722930646332,-300.0,0.00013,2]
[334304240,1722930646341,-276.37,0.00013011,2]
[334304241,1722930646350,-399.97,0.00013109,2]
[334304242,1722930646360,-1554.0,0.000132,2]
[334304243,1722930646369,-375.0,0.0001329,2]
[334304244,1722930646378,-1000.0,0.000133,2]
[334304245,1722930646388,-176.65,0.0001331,2]